fUST/lending_fUST_20240324
["ID","MTS","AMOUNT","RATE_DAILY","PERIOD"]
[320327178,1711292946096,-943.96263264,0.00021143,2]
[320327179,1711292946117,-1440.17183315,0.00021839,2]
[320327180,1711292946139,-596.93363089,0.00021839,2]
[320327181,1711292946161,-500.0,0.00021917,2]
[320327182,1711292946181,-166.666666,0.00021918,2]
[320327183,1711292946202,-18.67037464,0.00021937,2]
[320327184,1711292955160,-251.32790994,0.00021936,2]
[320327185,1711292955180,-388.54617153,0.00021937,2]
[320327186,1711292955199,-154.98140354,0.00021937,2]
[320327187,1711292955219,-215.0,0.00021937,2]
[320327188,1711292955239,-200.0,0.00021938,2]
[320327189,1711292955257,-500.0,0.00021938,2]
[320327190,1711292955279,-500.0,0.00021938,2]
[320327191,1711292955300,-512.0,0.00021938,2]
[320327192,1711292955320,-23951.39079553,0.00021938,2]
[320327199,1711292963412,-23826.31634404,0.00021938,2]
[320327200,1711292963439,-500.0,0.00021938,2]
[320327201,1711292963461,-500.0,0.00021938,2]
[320327202,1711292963482,-500.0,0.00021938,2]
[320327203,1711292963503,-624.82,0.00021938,2]
[320327204,1711292963526,-500.0,0.00021938,2]
[320327205,1711292963549,-500.0,0.00021938,2]
[320327206,1711292963570,-500.0,0.00021938,2]
[320327207,1711292963591,-500.0,0.00021938,2]
[320327208,1711292963611,-503.86817935,0.00021939,2]
[320327209,1711292963631,-500.0,0.00021939,2]
[320327210,1711292963654,-275.84252862,0.00021939,2]
[320327211,1711292963674,-370.66889417,0.00021939,2]
[320327212,1711292963694,-500.0,0.00021939,2]
[320327213,1711292963714,-500.0,0.00021939,2]
[320327214,1711292963734,-500.0,0.00021939,2]
[320327215,1711292963758,-500.0,0.00021939,2]
[320327216,1711292963782,-500.0,0.00021939,2]
[320327217,1711292963802,-500.0,0.00021939,2]
[320327218,1711292963824,-500.0,0.00021939,2]
[320327219,1711292963847,-500.0,0.00021939,2]
[320327220,1711292963869,-906.23,0.00021939,2]
[320327221,1711292963890,-500.0,0.00021939,2]
[320327222,1711292963909,-500.0,0.00021939,2]
[320327223,1711292963929,-525.46,0.00021939,2]
[320327224,1711292963950,-500.0,0.00021939,2]
[320327225,1711292963970,-500.0,0.00021939,2]
[320327226,1711292963991,-500.0,0.00021939,2]
[320327227,1711292964011,-500.0,0.00021939,2]
[320327228,1711292964035,-500.0,0.00021939,2]
[320327229,1711292964057,-500.0,0.00021939,2]
[320327230,1711292964078,-4082.17,0.00021939,2]
[320327231,1711292964098,-807.26,0.00021939,2]
[320327232,1711292964119,-500.0,0.00021939,2]
[320327233,1711292964141,-582.53061132,0.00021939,2]
[320327234,1711292964162,-500.0,0.00021939,2]
[320327235,1711292964183,-500.0,0.00021939,2]
[320327236,1711292964203,-500.0,0.00021939,2]
[320327237,1711292964223,-500.0,0.00021939,2]
[320327238,1711292964243,-892.04,0.00021939,2]
[320327239,1711292964263,-500.0,0.0002194,2]
[320327240,1711292964283,-500.0,0.0002194,2]
[320327241,1711292964303,-501.69628076,0.0002194,2]
[320327242,1711292964324,-500.0,0.0002194,2]
[320327243,1711292964347,-500.0,0.0002194,2]
[320327244,1711292964368,-500.0,0.0002194,2]
[320327245,1711292964388,-500.0,0.0002194,2]
[320327246,1711292964408,-500.0,0.0002194,2]
[320327247,1711292964428,-500.0,0.0002194,2]
[320327248,1711292964448,-243.90631602,0.0002194,2]
[320327249,1711292964468,-500.0,0.0002194,2]
[320327250,1711292964488,-500.0,0.0002194,2]
[320327251,1711292964509,-500.0,0.0002194,2]
[320327252,1711292964530,-500.0,0.0002194,2]
[320327253,1711292964550,-500.0,0.0002194,2]
[320327254,1711292964569,-500.0,0.0002194,2]
[320327255,1711292964589,-500.0,0.0002194,2]
[320327256,1711292964608,-500.0,0.0002194,2]
[320327257,1711292964628,-500.0,0.0002194,2]
[320327258,1711292964650,-500.0,0.0002194,2]
[320327259,1711292964670,-500.0,0.0002194,2]
[320327260,1711292964690,-500.0,0.0002194,2]
[320327261,1711292964710,-500.0,0.0002194,2]
[320327262,1711292964730,-500.0,0.0002194,2]
[320327263,1711292964750,-500.0,0.0002194,2]
[320327264,1711292964771,-500.0,0.0002194,2]
[320327265,1711292964792,-500.0,0.00022212,2]
[320327266,1711292964813,-512.0,0.00022212,2]
[320327267,1711292964835,-500.0,0.00022212,2]
[320327268,1711292964855,-500.0,0.00022212,2]
[320327269,1711292964877,-529.15,0.00022212,2]
[320327270,1711292964900,-624.82,0.00022212,2]
[320327271,1711292964921,-500.0,0.00022212,2]
[320327272,1711292964943,-500.0,0.00022212,2]
[320327273,1711292964965,-500.0,0.00022212,2]
[320327274,1711292964985,-500.0,0.00022212,2]
[320327275,1711292965005,-500.0,0.00022213,2]
[320327276,1711292965031,-500.0,0.00022213,2]
[320327277,1711292965051,-906.23,0.00022213,2]
[320327278,1711292965071,-500.0,0.00022213,2]
[320327279,1711292965091,-525.46,0.00022213,2]
[320327280,1711292965113,-500.0,0.00022213,2]
[320327281,1711292965133,-500.0,0.00022213,2]
[320327282,1711292965153,-4082.17,0.00022213,2]
[320327283,1711292965173,-807.26,0.00022213,2]
[320327284,1711292965194,-500.0,0.00022213,2]
[320327285,1711292965213,-500.0,0.00022214,2]
[320327286,1711292965233,-500.0,0.00022214,2]
[320327287,1711292965254,-500.0,0.00022214,2]
[320327288,1711292965274,-500.0,0.00022214,2]
[320327289,1711292965294,-500.0,0.00022214,2]
[320327290,1711292965315,-500.0,0.00022214,2]
[320327291,1711292965340,-500.0,0.00022214,2]
[320327292,1711292965363,-500.0,0.00022214,2]
[320327293,1711292965383,-500.0,0.00022214,2]
[320327294,1711292965413,-500.0,0.00022214,2]
[320327295,1711292965434,-500.0,0.00022214,2]
[320327296,1711292965455,-557.4,0.00022214,2]
[320327297,1711292965474,-500.0,0.00022214,2]
[320327298,1711292965493,-500.0,0.00022214,2]
[320327299,1711292965513,-500.0,0.00022214,2]
[320327300,1711292965535,-166.666666,0.00022431,2]
[320327301,1711292965560,-500.0,0.00022486,2]
[320327302,1711292965581,-512.0,0.00022486,2]
[320327303,1711292965601,-500.0,0.00022486,2]
[320327304,1711292965622,-286.81,0.00022486,2]
[320327305,1711292965642,-624.82,0.00022486,2]
[320327306,1711292965662,-500.0,0.00022486,2]
[320327307,1711292965683,-500.0,0.00022486,2]
[320327308,1711292965703,-500.0,0.00022486,2]
[320327309,1711292965723,-500.0,0.00022486,2]
[320327310,1711292965743,-493.54224124,0.00022486,2]
[320327311,1711292965762,-500.0,0.00022486,2]
[320327312,1711292965784,-500.0,0.00022486,2]
[320327313,1711292965804,-377.07533174,0.00022486,2]
[320327314,1711292965824,-264.95675327,0.00022486,2]
[320327315,1711292965845,-301.99335605,0.00022486,2]
[320327316,1711292965866,-550.0,0.00022486,2]
[320327317,1711292965886,-462.57986475,0.00022487,2]
[320327318,1711292965906,-500.0,0.00022487,2]
[320327319,1711292965927,-500.0,0.00022487,2]
[320327320,1711292965946,-486.59437873,0.00022487,2]
[320327321,1711292965966,-500.0,0.00022487,2]
[320327322,1711292965986,-500.0,0.00022487,2]
[320327323,1711292966006,-500.0,0.00022487,2]
[320327324,1711292966027,-500.0,0.00022487,2]
[320327325,1711292966136,-523.81,0.00022487,2]
[320327326,1711292966157,-500.0,0.00022487,2]
[320327327,1711292966180,-500.0,0.00022487,2]
[320327328,1711292966200,-500.0,0.00022487,2]
[320327329,1711292966219,-500.0,0.00022487,2]
[320327330,1711292966242,-500.0,0.00022487,2]
[320327331,1711292966263,-194.14,0.00022487,2]
[320327332,1711292966284,-500.0,0.00022487,2]
[320327333,1711292966305,-906.23,0.00022487,2]
[320327334,1711292966327,-500.0,0.00022487,2]
[320327335,1711292966348,-500.0,0.00022487,2]
[320327336,1711292966370,-500.0,0.00022487,2]
[320327337,1711292966390,-216.02456222,0.00022487,2]
[320327338,1711292966412,-525.46,0.00022487,2]
[320327339,1711292966432,-500.0,0.00022487,2]
[320327340,1711292966452,-500.0,0.00022487,2]
[320327341,1711292966473,-500.0,0.00022487,2]
[320327342,1711292966493,-500.0,0.00022487,2]
[320327343,1711292966514,-628.5,0.00022487,2]
[320327344,1711292966536,-500.0,0.00022487,2]
[320327345,1711292966557,-500.0,0.00022487,2]
[320327346,1711292966580,-500.0,0.00022487,2]
[320327347,1711292966600,-500.0,0.00022487,2]
[320327348,1711292966622,-4082.17,0.00022487,2]
[320327349,1711292966643,-807.26,0.00022487,2]
[320327350,1711292966664,-500.0,0.00022487,2]
[320327351,1711292966684,-500.0,0.00022487,2]
[320327352,1711292966705,-500.0,0.00022487,2]
[320327353,1711292966726,-500.0,0.00022487,2]
[320327354,1711292966747,-500.0,0.00022488,2]
[320327355,1711292966767,-501.64404825,0.00022488,2]
[320327356,1711292966793,-235.75,0.00022488,2]
[320327357,1711292966815,-500.0,0.00022488,2]
[320327358,1711292966835,-500.0,0.00022488,2]
[320327359,1711292966856,-169.936049,0.00022571,2]
[320327360,1711292966878,-500.0,0.0002276,2]
[320327361,1711292966898,-512.0,0.0002276,2]
[320327362,1711292966918,-500.0,0.0002276,2]
[320327363,1711292966938,-624.82,0.0002276,2]
[320327364,1711292966958,-500.0,0.0002276,2]
[320327365,1711292966979,-500.0,0.0002276,2]
[320327366,1711292966999,-500.0,0.0002276,2]
[320327367,1711292967019,-373.21,0.0002276,2]
[320327368,1711292967041,-500.0,0.00022761,2]
[320327369,1711292967061,-390.96,0.00022761,2]
[320327370,1711292967081,-500.0,0.00022761,2]
[320327371,1711292967101,-500.0,0.00022761,2]
[320327372,1711292967120,-500.0,0.00022761,2]
[320327373,1711292967140,-500.0,0.00022761,2]
[320327374,1711292967168,-906.23,0.00022761,2]
[320327375,1711292967195,-500.0,0.00022761,2]
[320327376,1711292967216,-500.0,0.00022761,2]
[320327377,1711292967237,-500.0,0.00022761,2]
[320327378,1711292967258,-525.46,0.00022761,2]
[320327379,1711292967286,-500.0,0.00022761,2]
[320327380,1711292967309,-500.0,0.00022761,2]
[320327381,1711292967330,-500.0,0.00022761,2]
[320327382,1711292967352,-4082.17,0.00022761,2]
[320327383,1711292967372,-807.26,0.00022761,2]
[320327384,1711292967393,-500.0,0.00022761,2]
[320327385,1711292967414,-500.0,0.00022761,2]
[320327386,1711292967435,-500.0,0.00022761,2]
[320327387,1711292967456,-500.0,0.00022761,2]
[320327388,1711292967476,-500.0,0.00022762,2]
[320327389,1711292967498,-500.0,0.00022762,2]
[320327390,1711292967520,-500.0,0.00022762,2]
[320327391,1711292967544,-596.93363088,0.00022832,2]
[320327392,1711292967565,-166.666666,0.00022944,2]
[320327393,1711292967586,-500.0,0.00023034,2]
[320327394,1711292967607,-512.0,0.00023034,2]
[320327395,1711292967628,-500.0,0.00023034,2]
[320327396,1711292967650,-624.82,0.00023034,2]
[320327397,1711292967672,-500.0,0.00023034,2]
[320327398,1711292967693,-500.0,0.00023034,2]
[320327399,1711292967715,-500.0,0.00023034,2]
[320327400,1711292967736,-500.0,0.00023035,2]
[320327401,1711292967757,-500.0,0.00023035,2]
[320327402,1711292967782,-906.23,0.00023035,2]
[320327403,1711292967805,-500.0,0.00023035,2]
[320327404,1711292967828,-500.0,0.00023035,2]
[320327405,1711292967848,-500.0,0.00023035,2]
[320327406,1711292967870,-525.46,0.00023035,2]
[320327407,1711292967891,-500.0,0.00023035,2]
[320327408,1711292967913,-500.0,0.00023035,2]
[320327409,1711292967932,-500.0,0.00023035,2]
[320327410,1711292967954,-4082.17,0.00023035,2]
[320327411,1711292967976,-807.26,0.00023035,2]
[320327412,1711292967997,-500.0,0.00023035,2]
[320327413,1711292968017,-500.0,0.00023035,2]
[320327414,1711292968043,-500.0,0.00023035,2]
[320327415,1711292968066,-500.0,0.00023035,2]
[320327416,1711292968087,-500.0,0.00023036,2]
[320327417,1711292968106,-500.0,0.00023036,2]
[320327418,1711292968128,-500.0,0.00023036,2]
[320327419,1711292968149,-500.0,0.00023308,2]
[320327420,1711292968171,-512.0,0.00023308,2]
[320327421,1711292968192,-500.0,0.00023308,2]
[320327422,1711292968213,-624.82,0.00023308,2]
[320327423,1711292968234,-500.0,0.00023308,2]
[320327424,1711292968257,-500.0,0.00023308,2]
[320327425,1711292968281,-500.0,0.00023308,2]
[320327426,1711292968302,-500.0,0.00023309,2]
[320327427,1711292968323,-500.0,0.00023309,2]
[320327428,1711292968343,-906.23,0.00023309,2]
[320327429,1711292968364,-500.0,0.00023309,2]
[320327430,1711292968385,-500.0,0.00023309,2]
[320327431,1711292968407,-500.0,0.00023309,2]
[320327432,1711292968429,-525.46,0.00023309,2]
[320327433,1711292968452,-500.0,0.00023309,2]
[320327434,1711292968473,-500.0,0.00023309,2]
[320327435,1711292968495,-500.0,0.00023309,2]
[320327436,1711292968517,-4082.17,0.00023309,2]
[320327437,1711292968542,-807.26,0.00023309,2]
[320327438,1711292968563,-500.0,0.00023309,2]
[320327439,1711292968585,-500.0,0.00023309,2]
[320327440,1711292968606,-500.0,0.00023309,2]
[320327441,1711292968628,-500.0,0.00023309,2]
[320327442,1711292968649,-500.0,0.0002331,2]
[320327443,1711292968671,-500.0,0.0002331,2]
[320327444,1711292968693,-500.0,0.0002331,2]
[320327445,1711292968821,-166.666666,0.00023456,2]
[320327446,1711292968842,-500.0,0.00023582,2]
[320327447,1711292968865,-512.0,0.00023582,2]
[320327448,1711292968888,-624.82,0.00023582,2]
[320327449,1711292968909,-500.0,0.00023582,2]
[320327450,1711292968931,-500.0,0.00023582,2]
[320327451,1711292968955,-500.0,0.00023582,2]
[320327452,1711292968976,-500.0,0.00023583,2]
[320327453,1711292968997,-500.0,0.00023583,2]
[320327454,1711292969019,-906.23,0.00023583,2]
[320327455,1711292969042,-500.0,0.00023583,2]
[320327456,1711292969063,-500.0,0.00023583,2]
[320327457,1711292969083,-500.0,0.00023583,2]
[320327458,1711292969104,-525.46,0.00023583,2]
[320327459,1711292969126,-500.0,0.00023583,2]
[320327460,1711292969147,-500.0,0.00023583,2]
[320327461,1711292969169,-500.0,0.00023583,2]
[320327462,1711292969191,-4082.17,0.00023583,2]
[320327463,1711292969212,-807.26,0.00023583,2]
[320327464,1711292969234,-500.0,0.00023583,2]
[320327465,1711292969254,-500.0,0.00023583,2]
[320327466,1711292969276,-500.0,0.00023583,2]
[320327467,1711292969298,-500.0,0.00023583,2]
[320327468,1711292969320,-500.0,0.00023584,2]
[320327469,1711292969340,-500.0,0.00023584,2]
[320327470,1711292969363,-500.0,0.00023584,2]
[320327471,1711292969385,-596.93363088,0.00023825,2]
[320327472,1711292969406,-500.0,0.00023856,2]
[320327473,1711292969428,-512.0,0.00023856,2]
[320327474,1711292969451,-624.82,0.00023856,2]
[320327475,1711292969472,-500.0,0.00023856,2]
[320327476,1711292969493,-500.0,0.00023856,2]
[320327477,1711292969514,-500.0,0.00023856,2]
[320327478,1711292969535,-500.0,0.00023857,2]
[320327479,1711292969556,-500.0,0.00023857,2]
[320327480,1711292969577,-906.23,0.00023857,2]
[320327481,1711292969597,-503.73631966,0.00023857,2]
[320327482,1711292969618,-200.0,0.00023857,2]
[320327483,1711292969639,-500.0,0.00023857,2]
[320327484,1711292969662,-525.46,0.00023857,2]
[320327485,1711292969683,-500.0,0.00023857,2]
[320327486,1711292969703,-500.0,0.00023857,2]
[320327487,1711292969725,-500.0,0.00023857,2]
[320327488,1711292969748,-4082.17,0.00023857,2]
[320327489,1711292969768,-807.26,0.00023857,2]
[320327490,1711292969793,-389.05,0.00023857,2]
[320327491,1711292969815,-500.0,0.00023857,2]
[320327492,1711292969836,-500.0,0.00023857,2]
[320327493,1711292969857,-500.0,0.00023857,2]
[320327494,1711292969879,-500.0,0.00023858,2]
[320327495,1711292969900,-500.0,0.00023858,2]
[320327496,1711292969920,-500.0,0.00023858,2]
[320327497,1711292969941,-1768.02951168,0.000239,2]
[320327498,1711292969961,-166.666666,0.00023969,2]
[320327499,1711292969982,-500.0,0.0002413,2]
[320327500,1711292970003,-512.0,0.0002413,2]
[320327501,1711292970024,-624.82,0.0002413,2]
[320327502,1711292970047,-500.0,0.0002413,2]
[320327503,1711292970068,-500.0,0.0002413,2]
[320327504,1711292970089,-500.0,0.0002413,2]
[320327505,1711292970110,-362.84,0.00024131,2]
[320327506,1711292970134,-500.0,0.00024131,2]
[320327507,1711292970157,-906.23,0.00024131,2]
[320327508,1711292970177,-500.0,0.00024131,2]
[320327509,1711292970198,-525.46,0.00024131,2]
[320327510,1711292970219,-500.0,0.00024131,2]
[320327511,1711292970240,-4082.17,0.00024131,2]
[320327512,1711292970263,-807.26,0.00024131,2]
[320327513,1711292970284,-500.0,0.00024131,2]
[320327514,1711292970305,-500.0,0.00024131,2]
[320327515,1711292970325,-500.0,0.00024132,2]
[320327516,1711292970346,-500.0,0.00024132,2]
[320327517,1711292970367,-500.0,0.00024132,2]
[320327518,1711292970388,-521.42,0.00024404,2]
[320327519,1711292970410,-512.0,0.00024404,2]
[320327520,1711292970431,-624.82,0.00024404,2]
[320327521,1711292970453,-500.0,0.00024404,2]
[320327522,1711292970473,-500.0,0.00024404,2]
[320327523,1711292970494,-500.0,0.00024404,2]
[320327524,1711292970515,-500.0,0.00024405,2]
[320327525,1711292970537,-906.23,0.00024405,2]
[320327526,1711292970558,-500.0,0.00024405,2]
[320327527,1711292970578,-525.46,0.00024405,2]
[320327528,1711292970598,-500.0,0.00024405,2]
[320327529,1711292970619,-4082.17,0.00024405,2]
[320327530,1711292970640,-807.26,0.00024405,2]
[320327531,1711292970661,-500.0,0.00024405,2]
[320327532,1711292970682,-500.0,0.00024405,2]
[320327533,1711292970702,-500.0,0.00024406,2]
[320327534,1711292970723,-394.90553628,0.00024406,2]
[320327535,1711292970747,-499.07318965,0.00024406,2]
[320327536,1711292970769,-166.666666,0.00024482,2]
[320327537,1711292970792,-263.02379479,0.00024678,2]
[320327538,1711292970812,-512.0,0.00024678,2]
[320327539,1711292970834,-624.82,0.00024678,2]
[320327540,1711292970858,-500.0,0.00024678,2]
[320327541,1711292970880,-500.0,0.00024678,2]
[320327542,1711292970901,-377.42376088,0.00024678,2]
[320327543,1711292970922,-209.17228338,0.00024679,2]
[320327544,1711292970941,-162.37729778,0.00024679,2]
[320327545,1711292970963,-500.0,0.00024679,2]
[320327546,1711292970984,-906.23,0.00024679,2]
[320327547,1711292971004,-518.43,0.00024679,2]
[320327548,1711292971025,-409.13513533,0.00024679,2]
[320327549,1711292981571,500.0,0.00021938,2]
[320327550,1711292985455,155.50616146,0.00019,2]
[320327553,1711292990397,500.0,0.00021939,2]
[320327554,1711292996088,500.0,0.00021939,2]
[320327591,1711293032089,-2111.63,0.00021939,2]
[320327593,1711293032099,-500.0,0.00022212,2]
[320327594,1711293032108,-892.04,0.00022213,2]
[320327596,1711293032117,-500.0,0.00022213,2]
[320327598,1711293032126,-500.0,0.00022213,2]
[320327600,1711293032135,-2111.63,0.00022213,2]
[320327602,1711293032145,-500.0,0.00022486,2]
[320327606,1711293032155,-892.04,0.00022487,2]
[320327608,1711293032166,-500.0,0.00022487,2]
[320327629,1711293032291,-500.0,0.00022487,2]
[320327630,1711293032302,-500.0,0.00022487,2]
[320327631,1711293032313,-500.0,0.00022487,2]
[320327632,1711293032324,-2111.63,0.00022487,2]
[320327633,1711293032334,-500.0,0.0002276,2]
[320327634,1711293032343,-892.04,0.00022761,2]
[320327635,1711293032353,-500.78432997,0.00022761,2]
[320327636,1711293032363,-500.0,0.00022761,2]
[320327637,1711293032372,-500.0,0.00022761,2]
[320327638,1711293032382,-500.0,0.00022761,2]
[320327639,1711293032392,-2111.63,0.00022761,2]
[320327640,1711293032401,-500.0,0.00023034,2]
[320327641,1711293032410,-892.04,0.00023035,2]
[320327642,1711293032420,-505.5,0.00023035,2]
[320327643,1711293032430,-500.0,0.00023035,2]
[320327644,1711293032439,-2111.63,0.00023035,2]
[320327645,1711293032449,-500.0,0.00023308,2]
[320327646,1711293032459,-892.04,0.00023309,2]
[320327647,1711293032470,-500.0,0.00023309,2]
[320327648,1711293032480,-2111.63,0.00023309,2]
[320327649,1711293032489,-500.0,0.00023582,2]
[320327650,1711293032499,-892.04,0.00023583,2]
[320327651,1711293032509,-500.0,0.00023583,2]
[320327652,1711293032520,-2111.63,0.00023583,2]
[320327653,1711293032529,-500.0,0.00023856,2]
[320327654,1711293032539,-892.04,0.00023857,2]
[320327655,1711293032549,-500.0,0.00023857,2]
[320327656,1711293032560,-2111.63,0.00023857,2]
[320327657,1711293032571,-500.0,0.0002413,2]
[320327658,1711293032581,-892.04,0.00024131,2]
[320327659,1711293032591,-500.0,0.00024131,2]
[320327660,1711293032600,-2111.63,0.00024131,2]
[320327661,1711293032610,-500.0,0.00024404,2]
[320327662,1711293032619,-892.04,0.00024405,2]
[320327663,1711293032629,-500.0,0.00024405,2]
[320327664,1711293032638,-2111.63,0.00024405,2]
[320327665,1711293032648,-1000.0,0.00024657,2]
[320327666,1711293032657,-500.0,0.00024678,2]
[320327667,1711293032667,-500.0,0.00024679,2]
[320327668,1711293032676,-4082.17,0.00024679,2]
[320327669,1711293032686,-807.26,0.00024679,2]
[320327670,1711293032695,-500.0,0.00024679,2]
[320327671,1711293032705,-500.0,0.00024679,2]
[320327672,1711293032715,-892.04,0.00024679,2]
[320327673,1711293032726,-500.0,0.00024679,2]
[320327674,1711293032735,-2111.63,0.00024679,2]
[320327675,1711293032746,-500.0,0.0002468,2]
[320327676,1711293032756,-620.31126333,0.00024788,2]
[320327677,1711293032766,-596.93363088,0.00024818,2]
[320327678,1711293032776,-1000.0,0.00024931,2]
[320327679,1711293032786,-4236.31994524,0.00024952,2]
[320327680,1711293032797,-512.0,0.00024952,2]
[320327681,1711293032812,-624.82,0.00024952,2]
[320327682,1711293032823,-500.0,0.00024952,2]
[320327683,1711293032835,-500.0,0.00024952,2]
[320327684,1711293032845,-500.0,0.00024952,2]
[320327685,1711293032856,-4208.23204469,0.00024953,3]
[320327686,1711293032870,-75859.84,0.00024953,3]
[320327687,1711293032947,-6383.77528116,0.00024953,3]
[320327688,1711293032958,-468.71,0.00024953,2]
[320327689,1711293032968,-500.0,0.00024953,2]
[320327690,1711293032979,-4082.17,0.00024953,2]
[320327691,1711293032989,-807.26,0.00024953,2]
[320327692,1711293032999,-500.0,0.00024953,2]
[320327693,1711293033008,-500.0,0.00024953,2]
[320327694,1711293033018,-892.04,0.00024953,2]
[320327695,1711293033028,-500.0,0.00024953,2]
[320327696,1711293033037,-2111.63,0.00024953,2]
[320327697,1711293033047,-500.0,0.00024954,2]
[320327698,1711293033058,-154.95351395,0.00025,2]
[320327699,1711293033069,-215.88707238,0.00025088,2]
[320327700,1711293033079,-290.82490655,0.00025088,2]
[320327701,1711293033090,-207.14718856,0.00025088,2]
[320327702,1711293033101,-329.70831677,0.00025088,2]
[320327703,1711293033111,-172.76108897,0.00025088,2]
[320327704,1711293033122,-306.05404063,0.00025088,2]
[320327705,1711293033132,-238.94649108,0.00025088,2]
[320327706,1711293033142,-205.23034575,0.00025088,2]
[320327707,1711293033152,-202.94895255,0.00025088,2]
[320327708,1711293033161,-500.0,0.00025089,2]
[320327709,1711293033170,-500.0,0.00025089,2]
[320327710,1711293033179,-4302.62,0.00025089,2]
[320327711,1711293033191,-500.0,0.00025089,2]
[320327712,1711293033201,-165.722575,0.00025106,2]
[320327713,1711293033212,-178.791803,0.00025106,2]
[320327714,1711293033222,-177.750556,0.00025106,2]
[320327715,1711293033232,-1000.0,0.00025205,2]
[320327716,1711293033243,-512.0,0.00025226,2]
[320327717,1711293033254,-624.82,0.00025226,2]
[320327718,1711293033264,-507.45,0.00025226,2]
[320327719,1711293033274,-542.30639847,0.00025226,2]
[320327720,1711293033283,-500.0,0.00025226,2]
[320327721,1711293033292,-236.92,0.00025227,2]
[320327722,1711293033302,-4082.17,0.00025227,2]
[320327723,1711293033313,-807.26,0.00025227,2]
[320327724,1711293033324,-500.0,0.00025227,2]
[320327725,1711293033336,-500.0,0.00025227,2]
[320327726,1711293033347,-892.04,0.00025227,2]
[320327727,1711293033358,-500.0,0.00025227,2]
[320327728,1711293033367,-2111.63,0.00025227,2]
[320327729,1711293033377,-500.0,0.00025228,2]
[320327730,1711293033386,-500.0,0.00025363,2]
[320327731,1711293033395,-500.0,0.00025363,2]
[320327732,1711293033404,-4302.62,0.00025363,2]
[320327733,1711293033413,-500.0,0.00025363,2]
[320327734,1711293033423,-1000.0,0.00025479,2]
[320327735,1711293033432,-512.0,0.000255,2]
[320327736,1711293033441,-624.82,0.000255,2]
[320327737,1711293033450,-447.38486467,0.000255,2]
[320327738,1711293033459,-4082.17,0.00025501,2]
[320327739,1711293033468,-807.26,0.00025501,2]
[320327740,1711293033477,-500.0,0.00025501,2]
[320327741,1711293033486,-500.0,0.00025501,2]
[320327742,1711293033495,-892.04,0.00025501,2]
[320327743,1711293033505,-500.0,0.00025501,2]
[320327744,1711293033514,-2111.63,0.00025501,2]
[320327745,1711293033524,-500.0,0.00025502,2]
[320327746,1711293033533,-500.0,0.00025637,2]
[320327747,1711293033542,-580.19519692,0.00025637,2]
[320327748,1711293033551,-4302.62,0.00025637,2]
[320327749,1711293033561,-500.0,0.00025637,2]
[320327750,1711293033571,-178.791803,0.00025734,2]